[Event "Frauenbundesliga 2024-25"]
[Site "Germany"]
[Date "2025.02.16"]
[Round "6.9"]
[White "Khotenashvili, Bella"]
[Black "Schneider, Jana"]
[Result "1/2-1/2"]
[Annotator "ChessBase"]
[ECO "A25"]
[WhiteElo "2419"]
[BlackElo "2259"]
[PlyCount "125"]
[EventDate "2024.11.06"]
[EventType "team-tourn"]
[EventCountry "GER"]
[SourceTitle "playchess.com"]
[Source "ChessBase"]
[SourceQuality "1"]
[TimeControl "40/5400+30:1800+30"]

1. c4 {[%emt 0:00:07]} e5 {[%emt 0:04:36]} 2. g3 {[%emt 0:01:35]} Nc6 {[%emt 0:00:13]} 3. Bg2 {[%emt 0:00:26]} Bc5 {[%emt 0:00:25]} 4. Nc3 {[%emt 0:01:12]} a6 {[%emt 0:00:33]} 5. e3 {[%emt 0:04:12]} d6 {[%emt 0:00:52]} 6. Nge2 {[%emt 0:00:22]} Ba7 {[%emt 0:00:13]} 7. Nd5 {[%emt 0:15:44]} Nce7 {[%emt 0:11:44]} 8. d4 {[%emt 0:04:35]} c6 {[%emt 0:01:19]} 9. Ndc3 {[%emt 0:02:58]} Nf6 {[%emt 0:04:46]} 10. dxe5 {[%emt 0:04:13]} dxe5 {[%emt 0:00:06]} 11. Qxd8+ {[%emt 0:00:03]} Kxd8 {[%emt 0:00:10]} 12. b3 {[%emt 0:00:04]} Bc5 {[%emt 0:08:36]} 13. Bb2 {[%emt 0:08:09]} Kc7 {[%emt 0:11:47]} 14. O-O-O {[%emt 0:03:47]} Ng6 {[%emt 0:02:17]} 15. Na4 {[%emt 0:02:12]} Be7 {[%emt 0:00:40]} 16. c5 {[%emt 0:10:59]} Bg4 {[%emt 0:07:31]} 17. f3 {[%emt 0:04:34]} Be6 {[%emt 0:00:03]} 18. e4 {[%emt 0:07:58]} Nd7 {[%emt 0:08:01]} 19. h4 {[%emt 0:00:00]} h5 {[%emt 0:00:49]} 20. Ba3 {[%emt 0:06:44]} Rhd8 {[%emt 0:00:40]} 21. Nec3 {[%emt 0:01:09]} Ndf8 {[%emt 0:06:25]} 22. Rxd8 {[%emt 0:03:13]} Rxd8 {[%emt 0:00:57]} 23. Bb4 {[%emt 0:01:41]} Kb8 {[%emt 0:00:50]} 24. Ba5 {[%emt 0:01:32]} Re8 {[%emt 0:03:01]} 25. Rd1 {[%emt 0:04:26]} Nd7 {[%emt 0:00:46]} 26. b4 {[%emt 0:00:09]} Bd8 {[%emt 0:01:32]} 27. Nb6 {[%emt 0:06:11]} Nxb6 {[%emt 0:01:03]} 28. Bxb6 {[%emt 0:00:01]} Bxb6 {[%emt 0:00:43]} 29. cxb6 {[%emt 0:00:01]} Kc8 {[%emt 0:04:02]} 30. Bf1 {[%emt 0:02:49]} Rd8 {[%emt 0:01:39]} 31. Rxd8+ {[%emt 0:00:06]} Kxd8 {[%emt 0:00:04]} 32. Na4 {[%emt 0:00:06]} Nf8 {[%emt 0:10:18]} 33. Nc5 {[%emt 0:00:02]} Bc8 {[%emt 0:00:07]} 34. Bc4 {[%emt 0:00:32]} Ke7 {[%emt 0:00:24]} 35. Kd2 {[%emt 0:04:59]} f6 {[%emt 0:01:19]} 36. Ke3 {[%emt 0:00:14]} g5 {[%emt 0:04:34]} 37. Kf2 {[%emt 0:01:13]} Ng6 {[%emt 0:02:46]} 38. hxg5 {[%emt 0:00:02]} fxg5 {[%emt 0:00:06]} 39. Bxa6 {[%emt 0:00:58]} bxa6 {[%emt 0:00:47]} 40. b7 {[%emt 0:00:01]} Bxb7 {[%emt 0:00:08]} 41. Nxb7 {[%emt 0:30:02]} Kd7 {[%emt 0:14:19]} 42. Nc5+ {[%emt 0:00:00]} Kc7 {[%emt 0:00:05]} 43. Nxa6+ {[%emt 0:00:00]} Kb6 {[%emt 0:00:02]} 44. Nc5 {[%emt 0:00:00]} Kb5 {[%emt 0:00:05]} 45. a3 {[%emt 0:00:00]} Kc4 {[%emt 0:03:43]} 46. Ke3 {[%emt 0:00:00]} Kc3 {[%emt 0:04:34]} 47. Ne6 {[%emt 0:00:00]} Kb3 {[%emt 0:01:02]} 48. Nxg5 {[%emt 0:00:00]} h4 {[%emt 0:05:15]} 49. f4 {[%emt 0:02:03]} hxg3 {[%emt 0:01:01]} 50. f5 {[%emt 0:00:01]} Nf8 {[%emt 0:01:53]} 51. Nf7 {[%emt 0:01:35]} Nd7 {[%emt 0:00:18]} 52. Nd8 {[%emt 0:00:19]} Kxa3 {[%emt 0:00:57]} 53. Nxc6 {[%emt 0:00:05]} Ka4 {[%emt 0:00:04]} 54. Kf3 {[%emt 0:01:10]} Kb5 {[%emt 0:00:24]} 55. Ne7 {[%emt 0:00:33]} Nf6 {[%emt 0:02:56]} 56. Nd5 {[%emt 0:01:16]} g2 {[%emt 0:00:33]} 57. Kxg2 {[%emt 0:00:09]} Nxe4 {[%emt 0:00:05]} 58. Kf3 {[%emt 0:01:33]} Nd6 {[%emt 0:00:17]} 59. f6 {[%emt 0:00:58]} Kc4 {[%emt 0:00:12]} 60. Ne7 {[%emt 0:00:26]} Kxb4 {[%emt 0:00:38]} 61. Nc6+ {[%emt 0:00:51]} Kc5 {[%emt 0:00:14]} 62. Nxe5 {[%emt 0:00:18]} Kd5 {[%emt 0:00:10]} 63. Kf4 {[%emt 0:00:21]} 1/2-1/2

[Event "Frauenbundesliga 2024-25"]
[Site "Germany"]
[Date "2025.02.16"]
[Round "6.9"]
[White "Khrapko, Marharyta"]
[Black "Endress, Anna"]
[Result "1/2-1/2"]
[Annotator "NA"]
[ECO "E06"]
[WhiteElo "2126"]
[BlackElo "2092"]
[PlyCount "68"]
[EventDate "2024.11.06"]
[EventType "team-tourn"]
[EventCountry "GER"]
[SourceTitle "playchess.com"]
[Source "ChessBase"]
[SourceQuality "1"]
[TimeControl "40/5400+30:1800+30"]

1. c4 {[%emt 0:00:45]} e6 {[%emt 0:01:56]} 2. g3 {[%emt 0:00:06]} Nf6 {[%emt 0:02:06]} 3. Bg2 {[%emt 0:00:12]} d5 {[%emt 0:04:18]} 4. Nf3 {[%emt 0:00:25]} Be7 {[%emt 0:00:26]} 5. O-O {[%emt 0:00:24]} c5 {[%emt 0:04:39]} 6. cxd5 {[%emt 0:02:02]} Nxd5 {[%emt 0:15:54]} 7. d4 {[%emt 0:01:08]} Nc6 {[%emt 0:06:02]} 8. dxc5 {[%emt 0:02:01]} Bxc5 {[%emt 0:04:43]} 9. e4 {[%emt 0:12:15]} Ndb4 {[%emt 0:07:14]} 10. a3 {[%emt 0:06:25]} Qxd1 {[%emt 0:11:59]} 11. Rxd1 {[%emt 0:00:09]} Nc2 {[%emt 0:00:08]} 12. Ra2 {[%emt 0:00:06]} N2d4 {[%emt 0:01:24]} 13. b4 {[%emt 0:04:41]} Bb6 {[%emt 0:10:23]} 14. Nxd4 {[%emt 0:01:35]} Nxd4 {[%emt 0:00:18]} 15. e5 {[%emt 0:00:24]} Ke7 {[%emt 0:12:15]} 16. Nc3 {[%emt 0:11:22]} Rd8 {[%emt 0:08:54]} 17. Rad2 {[%emt 0:00:05]} h6 {[%emt 0:02:16]} 18. a4 {[%emt 0:04:24]} Nc6 {[%emt 0:00:46]} 19. a5 {[%emt 0:00:55]} Rxd2 {[%emt 0:01:20]} 20. Rxd2 {[%emt 0:05:22]} Bc7 {[%emt 0:02:09]} 21. f4 {[%emt 0:01:09]} Nxb4 {[%emt 0:01:05]} 22. Ba3 {[%emt 0:06:57]} Bxa5 {[%emt 0:00:01]} 23. Kf1 {[%emt 0:00:13]} Ke8 {[%emt 0:00:17]} 24. Nb5 {[%emt 0:00:23]} Nd5 {[%emt 0:01:06]} 25. Nd6+ {[%emt 0:01:05]} Kd7 {[%emt 0:00:14]} 26. Rd3 {[%emt 0:01:38]} b6 {[%emt 0:00:48]} 27. Kf2 {[%emt 0:06:51]} Ba6 {[%emt 0:00:37]} 28. Rd1 {[%emt 0:00:02]} b5 {[%emt 0:00:32]} 29. Bc5 {[%emt 0:01:49]} Bb6 {[%emt 0:00:29]} 30. Bxb6 {[%emt 0:00:05]} axb6 {[%emt 0:00:13]} 31. f5 {[%emt 0:01:25]} Ke7 {[%emt 0:00:52]} 32. Rc1 {[%emt 0:02:13]} Ra7 {[%emt 0:00:30]} 33. Ra1 {[%emt 0:00:37]} Ra8 {[%emt 0:00:27]} 34. Rc1 {[%emt 0:02:48]} Ra7 {[%emt 0:00:04]} 1/2-1/2

[Event "Frauenbundesliga 2024-25"]
[Site "Germany"]
[Date "2025.02.16"]
[Round "6.10"]
[White "Kulon, Klaudia"]
[Black "Bulmaga, Irina"]
[Result "1/2-1/2"]
[Annotator "ChessBase"]
[ECO "C47"]
[WhiteElo "2393"]
[BlackElo "2386"]
[PlyCount "89"]
[EventDate "2024.11.06"]
[EventType "team-tourn"]
[EventCountry "GER"]
[SourceTitle "playchess.com"]
[Source "ChessBase"]
[SourceQuality "1"]
[TimeControl "40/5400+30:1800+30"]

1. e4 {[%emt 0:00:04]} e5 {[%emt 0:00:09]} 2. Nf3 {[%emt 0:00:11]} Nc6 {[%emt 0:00:09]} 3. Nc3 {[%emt 0:00:08]} Nf6 {[%emt 0:00:12]} 4. d4 {[%emt 0:00:15]} exd4 {[%emt 0:00:09]} 5. Nxd4 {[%emt 0:00:04]} Bb4 {[%emt 0:00:38]} 6. Nxc6 {[%emt 0:00:19]} bxc6 {[%emt 0:00:09]} 7. Bd3 {[%emt 0:00:03]} d5 {[%emt 0:00:46]} 8. exd5 {[%emt 0:00:08]} cxd5 {[%emt 0:00:25]} 9. O-O {[%emt 0:00:18]} O-O {[%emt 0:00:28]} 10. Bg5 {[%emt 0:01:26]} c6 {[%emt 0:05:48]} 11. Qf3 {[%emt 0:00:32]} h6 {[%emt 0:22:58]} 12. Bxf6 {[%emt 0:05:20]} Qxf6 {[%emt 0:00:08]} 13. Qxf6 {[%emt 0:00:07]} gxf6 {[%emt 0:00:05]} 14. Ne2 {[%emt 0:00:42]} Rb8 {[%emt 0:02:59]} 15. Rab1 {[%emt 0:01:46]} Bd6 {[%emt 0:10:10]} 16. Rfd1 {[%emt 0:16:35]} Be6 {[%emt 0:08:44]} 17. c3 {[%emt 0:03:08]} c5 {[%emt 0:08:06]} 18. b3 {[%emt 0:05:15]} Rb6 {[%emt 0:03:12]} 19. h3 {[%emt 0:03:56]} f5 {[%emt 0:01:36]} 20. f4 {[%emt 0:03:52]} Re8 {[%emt 0:02:55]} 21. Kf1 {[%emt 0:01:17]} Bc8 {[%emt 0:01:59]} 22. g3 {[%emt 0:03:33]} Kg7 {[%emt 0:01:41]} 23. a4 {[%emt 0:06:11]} Be6 {[%emt 0:07:20]} 24. Bc2 {[%emt 0:04:47]} Kf6 {[%emt 0:04:12]} 25. Ng1 {[%emt 0:01:52]} Rg8 {[%emt 0:02:52]} 26. Kf2 {[%emt 0:00:31]} d4 {[%emt 0:01:03]} 27. c4 {[%emt 0:01:48]} Bd7 {[%emt 0:05:39]} 28. Nf3 {[%emt 0:05:32]} Rbb8 {[%emt 0:01:17]} 29. Re1 {[%emt 0:01:20]} Rge8 {[%emt 0:00:03]} 30. Rxe8 {[%emt 0:06:26]} Rxe8 {[%emt 0:00:07]} 31. Re1 {[%emt 0:01:04]} Rxe1 {[%emt 0:00:18]} 32. Kxe1 {[%emt 0:00:04]} Bc6 {[%emt 0:00:09]} 33. Ke2 {[%emt 0:01:16]} Be4 {[%emt 0:01:13]} 34. Bd3 {[%emt 0:00:11]} Ke6 {[%emt 0:01:55]} 35. Nd2 {[%emt 0:08:10]} Bg2 {[%emt 0:00:18]} 36. h4 {[%emt 0:00:12]} Bc6 {[%emt 0:00:36]} 37. Bc2 {[%emt 0:07:31]} Be7 {[%emt 0:03:10]} 38. Bd3 {[%emt 0:00:16]} Bd8 {[%emt 0:00:13]} 39. Bc2 {[%emt 0:01:04]} Ba5 {[%emt 0:00:14]} 40. Nf3 {[%emt 0:00:11]} Be4 {[%emt 0:01:26]} 41. Bd3 {[%emt 0:30:03]} Bc3 {[%emt 0:30:50]} 42. h5 {[%emt 0:08:21]} Ba5 {[%emt 0:00:00]} 43. Nh2 {[%emt 0:00:00]} Bc7 {[%emt 0:00:00]} 44. Nf3 {[%emt 0:00:00]} Ba5 {[%emt 0:00:00]} 45. Nh2 {[%emt 0:00:00]} 1/2-1/2

[Event "Frauenbundesliga 2024-25"]
[Site "Germany"]
[Date "2025.02.16"]
[Round "6.10"]
[White "Otikova, Elina"]
[Black "Giss, Helene"]
[Result "1/2-1/2"]
[Annotator "NA"]
[ECO "C10"]
[WhiteElo "2092"]
[BlackElo "2040"]
[PlyCount "60"]
[EventDate "2024.11.06"]
[EventType "team-tourn"]
[EventCountry "GER"]
[SourceTitle "playchess.com"]
[Source "ChessBase"]
[SourceQuality "1"]
[TimeControl "40/5400+30:1800+30"]

1. e4 {[%emt 0:00:03]} e6 {[%emt 0:00:04]} 2. d4 {[%emt 0:00:09]} d5 {[%emt 0:00:05]} 3. Nd2 {[%emt 0:01:06]} dxe4 {[%emt 0:01:06]} 4. Nxe4 {[%emt 0:00:09]} Nd7 {[%emt 0:00:03]} 5. Bd3 {[%emt 0:09:25]} Ngf6 {[%emt 0:00:40]} 6. Qe2 {[%emt 0:03:05]} Nxe4 {[%emt 0:05:39]} 7. Bxe4 {[%emt 0:06:57]} Nf6 {[%emt 0:00:07]} 8. Bxb7 {[%emt 0:08:00]} Bxb7 {[%emt 0:13:09]} 9. Qb5+ {[%emt 0:00:07]} Qd7 {[%emt 0:04:21]} 10. Qxb7 {[%emt 0:00:08]} Rd8 {[%emt 0:00:11]} 11. Nf3 {[%emt 0:05:21]} Bd6 {[%emt 0:16:50]} 12. O-O {[%emt 0:03:37]} O-O {[%emt 0:00:13]} 13. Ne5 {[%emt 0:07:16]} Qa4 {[%emt 0:09:58]} 14. Nc6 {[%emt 0:03:13]} Qc4 {[%emt 0:11:42]} 15. Be3 {[%emt 0:14:27]} Ra8 {[%emt 0:07:05]} 16. Ne5 {[%emt 0:06:56]} Qxc2 {[%emt 0:03:21]} 17. Rfc1 {[%emt 0:01:37]} Qf5 {[%emt 0:04:37]} 18. Qf3 {[%emt 0:01:27]} Qxf3 {[%emt 0:07:02]} 19. Nxf3 {[%emt 0:00:06]} Nd5 {[%emt 0:00:19]} 20. Bd2 {[%emt 0:02:32]} a5 {[%emt 0:02:06]} 21. Ne5 {[%emt 0:02:00]} Bxe5 {[%emt 0:04:00]} 22. dxe5 {[%emt 0:00:06]} Rfb8 {[%emt 0:00:22]} 23. Rab1 {[%emt 0:05:12]} Kf8 {[%emt 0:00:37]} 24. a4 {[%emt 0:04:02]} Ra6 {[%emt 0:02:25]} 25. g3 {[%emt 0:02:09]} Ke7 {[%emt 0:01:59]} 26. Rc5 {[%emt 0:00:23]} Rba8 {[%emt 0:00:46]} 27. Rb5 {[%emt 0:02:31]} Kd7 {[%emt 0:00:45]} 28. Rc1 {[%emt 0:01:07]} Nb6 {[%emt 0:03:30]} 29. Rbc5 {[%emt 0:05:43]} Nd5 {[%emt 0:00:41]} 30. Rb5 {[%emt 0:01:37]} Nb6 {[%emt 0:00:08]} 1/2-1/2

[Event "Frauenbundesliga 2024-25"]
[Site "Germany"]
[Date "2025.02.16"]
[Round "6.11"]
[White "Atalik, Ekaterina"]
[Black "Cyfka, Karina"]
[Result "0-1"]
[Annotator "ChessBase"]
[ECO "E26"]
[WhiteElo "2385"]
[BlackElo "2366"]
[PlyCount "50"]
[EventDate "2024.11.06"]
[EventType "team-tourn"]
[EventCountry "GER"]
[SourceTitle "playchess.com"]
[Source "ChessBase"]
[SourceQuality "1"]
[TimeControl "40/5400+30:1800+30"]

1. d4 {[%emt 0:00:02]} Nf6 {[%emt 0:00:08]} 2. c4 {[%emt 0:00:11]} e6 {[%emt 0:00:11]} 3. Nc3 {[%emt 0:00:17]} Bb4 {[%emt 0:00:37]} 4. a3 {[%emt 0:00:33]} Bxc3+ {[%emt 0:00:44]} 5. bxc3 {[%emt 0:00:04]} c5 {[%emt 0:02:56]} 6. e3 {[%emt 0:00:38]} b6 {[%emt 0:01:05]} 7. Bd3 {[%emt 0:02:01]} Bb7 {[%emt 0:00:48]} 8. Nf3 {[%emt 0:01:05]} d6 {[%emt 0:07:53]} 9. O-O {[%emt 0:00:25]} Nbd7 {[%emt 0:02:53]} 10. Nd2 {[%emt 0:09:55]} Qe7 {[%emt 0:03:53]} 11. a4 {[%emt 0:08:41]} e5 {[%emt 0:03:47]} 12. a5 {[%emt 0:03:03]} O-O {[%emt 0:04:25]} 13. Re1 {[%emt 0:03:30]} Rfe8 {[%emt 0:02:20]} 14. d5 {[%emt 0:12:12]} e4 {[%emt 0:03:13]} 15. Bc2 {[%emt 0:01:43]} bxa5 {[%emt 0:01:51]} 16. Nb3 {[%emt 0:16:56]} Ne5 {[%emt 0:04:47]} 17. Nxa5 {[%emt 0:05:14]} Nfg4 {[%emt 0:16:28]} 18. h3 {[%emt 0:03:38]} Qh4 {[%emt 0:03:15]} 19. Qe2 {[%emt 0:04:08]} Bc8 {[%emt 0:03:41]} 20. Nc6 {[%emt 0:11:13]} Nxc6 {[%emt 0:07:47]} 21. dxc6 {[%emt 0:00:15]} Ne5 {[%emt 0:00:06]} 22. Rd1 {[%emt 0:08:23]} Bxh3 {[%emt 0:05:34]} 23. Bxe4 {[%emt 0:06:57]} Qxe4 {[%emt 0:00:22]} 24. f3 {[%emt 0:00:41]} Qg6 {[%emt 0:00:47]} 25. c7 {[%emt 0:00:27]} a5 {[%emt 0:04:40]} 0-1

[Event "Frauenbundesliga 2024-25"]
[Site "Germany"]
[Date "2025.02.16"]
[Round "6.11"]
[White "Werner, Carolin"]
[Black "Rath, Alina"]
[Result "0-1"]
[Annotator "NA"]
[ECO "B65"]
[WhiteElo "1973"]
[BlackElo "2011"]
[PlyCount "122"]
[EventDate "2024.11.06"]
[EventType "team-tourn"]
[EventCountry "GER"]
[SourceTitle "playchess.com"]
[Source "ChessBase"]
[SourceQuality "1"]
[TimeControl "40/5400+30:1800+30"]

1. e4 {[%emt 0:00:03]} c5 {[%emt 0:00:05]} 2. Nf3 {[%emt 0:00:09]} Nc6 {[%emt 0:00:07]} 3. d4 {[%emt 0:00:04]} cxd4 {[%emt 0:00:05]} 4. Nxd4 {[%emt 0:00:11]} Nf6 {[%emt 0:00:14]} 5. Nc3 {[%emt 0:00:07]} d6 {[%emt 0:00:05]} 6. Bg5 {[%emt 0:00:07]} e6 {[%emt 0:00:57]} 7. Qd2 {[%emt 0:00:18]} Be7 {[%emt 0:00:41]} 8. f4 {[%emt 0:00:30]} O-O {[%emt 0:09:44]} 9. O-O-O {[%emt 0:02:28]} Nxd4 {[%emt 0:03:33]} 10. Qxd4 {[%emt 0:00:03]} Qa5 {[%emt 0:00:11]} 11. Bc4 {[%emt 0:01:14]} Bd7 {[%emt 0:05:22]} 12. e5 {[%emt 0:01:26]} dxe5 {[%emt 0:02:09]} 13. fxe5 {[%emt 0:00:39]} Bc6 {[%emt 0:00:31]} 14. Bd2 {[%emt 0:00:57]} Nd7 {[%emt 0:00:37]} 15. Nd5 {[%emt 0:00:28]} Qd8 {[%emt 0:00:10]} 16. Nxe7+ {[%emt 0:00:06]} Qxe7 {[%emt 0:00:05]} 17. Rhe1 {[%emt 0:02:45]} Rfd8 {[%emt 0:07:35]} 18. Qg4 {[%emt 0:01:22]} Nf8 {[%emt 0:00:29]} 19. Bd3 {[%emt 0:01:02]} Qc5 {[%emt 0:08:43]} 20. Bb4 {[%emt 0:17:41]} Qb6 {[%emt 0:00:42]} 21. Bd6 {[%emt 0:07:23]} Rac8 {[%emt 0:02:43]} 22. h4 {[%emt 0:10:14]} Bb5 {[%emt 0:04:56]} 23. Kb1 {[%emt 0:11:28]} Bxd3 {[%emt 0:03:50]} 24. Rxd3 {[%emt 0:00:19]} Qf2 {[%emt 0:00:59]} 25. Rc1 {[%emt 0:02:39]} b5 {[%emt 0:06:32]} 26. Rg3 {[%emt 0:04:03]} g6 {[%emt 0:09:27]} 27. Rf3 {[%emt 0:11:48]} Qd2 {[%emt 0:03:18]} 28. Qg3 {[%emt 0:03:06]} Rc4 {[%emt 0:09:23]} 29. Rf2 {[%emt 0:00:53]} Qh6 {[%emt 0:00:50]} 30. Qf3 {[%emt 0:00:32]} f5 {[%emt 0:02:42]} 31. g3 {[%emt 0:02:17]} Qg7 {[%emt 0:00:33]} 32. Qb3 {[%emt 0:06:39]} Qd7 {[%emt 0:05:02]} 33. Rd2 {[%emt 0:01:45]} Qc6 {[%emt 0:02:06]} 34. Rcd1 {[%emt 0:00:21]} a6 {[%emt 0:01:27]} 35. a3 {[%emt 0:01:06]} Qe4 {[%emt 0:02:22]} 36. Ka2 {[%emt 0:03:11]} Rdc8 {[%emt 0:05:10]} 37. Rd3 {[%emt 0:07:44]} h6 {[%emt 0:04:33]} 38. R1d2 {[%emt 0:00:21]} g5 {[%emt 0:00:26]} 39. hxg5 {[%emt 0:01:07]} hxg5 {[%emt 0:00:02]} 40. Rh2 {[%emt 0:01:06]} Ng6 {[%emt 0:00:59]} 41. Re3 {[%emt 0:06:58]} Qd5 {[%emt 0:04:58]} 42. c3 {[%emt 0:02:27]} Kg7 {[%emt 0:03:29]} 43. Rh5 {[%emt 0:07:42]} g4 {[%emt 0:02:15]} 44. Re1 {[%emt 0:05:44]} Rh8 {[%emt 0:01:20]} 45. Rxh8 {[%emt 0:02:27]} Nxh8 {[%emt 0:00:02]} 46. Be7 {[%emt 0:00:53]} Nf7 {[%emt 0:00:21]} 47. Bf6+ {[%emt 0:00:27]} Kg6 {[%emt 0:01:00]} 48. Rd1 {[%emt 0:02:58]} Qe4 {[%emt 0:04:26]} 49. Rd4 {[%emt 0:04:36]} Rxd4 {[%emt 0:08:32]} 50. cxd4 {[%emt 0:00:01]} Qd5 {[%emt 0:00:23]} 51. Qxd5 {[%emt 0:01:07]} exd5 {[%emt 0:00:01]} 52. Bh4 {[%emt 0:00:48]} Ng5 {[%emt 0:00:58]} 53. Kb3 {[%emt 0:00:26]} Nf3 {[%emt 0:00:41]} 54. Bd8 {[%emt 0:00:28]} Nxd4+ {[%emt 0:03:29]} 55. Kb4 {[%emt 0:00:05]} Nc6+ {[%emt 0:00:16]} 56. Kc5 {[%emt 0:00:48]} Nxd8 {[%emt 0:00:11]} 57. Kxd5 {[%emt 0:00:25]} Kf7 {[%emt 0:00:32]} 58. b3 {[%emt 0:00:44]} Ne6 {[%emt 0:01:46]} 59. a4 {[%emt 0:00:10]} f4 {[%emt 0:00:58]} 60. gxf4 {[%emt 0:00:02]} Nxf4+ {[%emt 0:00:25]} 61. Ke4 {[%emt 0:00:26]} g3 {[%emt 0:00:31]} 0-1

[Event "Frauenbundesliga 2024-25"]
[Site "Germany"]
[Date "2025.02.16"]
[Round "6.12"]
[White "Savina, Anastasia"]
[Black "Daulyte-Cornette, Deimante"]
[Result "1/2-1/2"]
[Annotator "ChessBase"]
[ECO "E28"]
[WhiteElo "2324"]
[BlackElo "2384"]
[PlyCount "105"]
[EventDate "2024.11.06"]
[EventType "team-tourn"]
[EventCountry "GER"]
[SourceTitle "playchess.com"]
[Source "ChessBase"]
[SourceQuality "1"]
[TimeControl "40/5400+30:1800+30"]

1. d4 {[%emt 0:00:06]} Nf6 {[%emt 0:00:07]} 2. c4 {[%emt 0:00:10]} e6 {[%emt 0:00:07]} 3. Nc3 {[%emt 0:00:14]} Bb4 {[%emt 0:00:09]} 4. e3 {[%emt 0:00:13]} O-O {[%emt 0:00:19]} 5. a3 {[%emt 0:01:13]} Bxc3+ {[%emt 0:00:34]} 6. bxc3 {[%emt 0:00:04]} d6 {[%emt 0:00:41]} 7. Ne2 {[%emt 0:04:05]} Nh5 {[%emt 0:03:00]} 8. g4 {[%emt 0:30:21]} Nf6 {[%emt 0:00:26]} 9. Ng3 {[%emt 0:00:10]} e5 {[%emt 0:05:23]} 10. h3 {[%emt 0:01:39]} exd4 {[%emt 0:15:59]} 11. cxd4 {[%emt 0:02:47]} d5 {[%emt 0:00:06]} 12. Bg2 {[%emt 0:19:48]} c6 {[%emt 0:03:37]} 13. cxd5 {[%emt 0:09:12]} cxd5 {[%emt 0:00:11]} 14. O-O {[%emt 0:00:19]} Nc6 {[%emt 0:02:37]} 15. Ra2 {[%emt 0:04:19]} Re8 {[%emt 0:09:13]} 16. Qd3 {[%emt 0:01:51]} Qd6 {[%emt 0:08:25]} 17. Bd2 {[%emt 0:03:16]} h5 {[%emt 0:14:09]} 18. gxh5 {[%emt 0:07:47]} Ne4 {[%emt 0:00:50]} 19. Be1 {[%emt 0:03:04]} Qh6 {[%emt 0:10:03]} 20. Qd1 {[%emt 0:05:07]} Nxg3 {[%emt 0:04:00]} 21. fxg3 {[%emt 0:00:04]} Qxe3+ {[%emt 0:00:27]} 22. Bf2 {[%emt 0:01:33]} Qg5 {[%emt 0:04:34]} 23. Rb2 {[%emt 0:00:25]} Be6 {[%emt 0:05:29]} 24. Rxb7 {[%emt 0:00:40]} Na5 {[%emt 0:00:24]} 25. h4 {[%emt 0:02:30]} Qd8 {[%emt 0:01:07]} 26. Rb5 {[%emt 0:00:34]} Nc4 {[%emt 0:00:20]} 27. h6 {[%emt 0:00:16]} g6 {[%emt 0:05:04]} 28. h5 {[%emt 0:01:10]} Qg5 {[%emt 0:00:27]} 29. hxg6 {[%emt 0:00:39]} Qxg6 {[%emt 0:01:24]} 30. Qc1 {[%emt 0:01:20]} Nd6 {[%emt 0:01:07]} 31. Rc5 {[%emt 0:00:07]} Nf5 {[%emt 0:02:21]} 32. Qf4 {[%emt 0:00:40]} Rad8 {[%emt 0:00:43]} 33. Rc7 {[%emt 0:00:34]} Nxh6 {[%emt 0:00:39]} 34. Rxa7 {[%emt 0:00:41]} Ng4 {[%emt 0:01:13]} 35. Bf3 {[%emt 0:00:11]} Qh5 {[%emt 0:00:40]} 36. Bxg4 {[%emt 0:00:23]} Bxg4 {[%emt 0:00:04]} 37. Be3 {[%emt 0:00:38]} Be6 {[%emt 0:01:09]} 38. Qg5+ {[%emt 0:00:48]} Qxg5 {[%emt 0:00:06]} 39. Bxg5 {[%emt 0:00:02]} Ra8 {[%emt 0:00:06]} 40. Rxa8 {[%emt 0:00:43]} Rxa8 {[%emt 0:00:04]} 41. Be7 {[%emt 0:01:47]} Kg7 {[%emt 0:01:31]} 42. Kf2 {[%emt 0:04:40]} Bd7 {[%emt 0:02:28]} 43. Rb1 {[%emt 0:07:41]} Ra6 {[%emt 0:05:14]} 44. Rb3 {[%emt 0:05:52]} Kg6 {[%emt 0:03:03]} 45. Rb7 {[%emt 0:02:32]} Bc6 {[%emt 0:00:35]} 46. Rc7 {[%emt 0:00:53]} Bb5 {[%emt 0:03:11]} 47. Rb7 {[%emt 0:04:52]} Bc4 {[%emt 0:07:11]} 48. Bc5 {[%emt 0:05:53]} Rf6+ {[%emt 0:01:29]} 49. Ke3 {[%emt 0:00:23]} Re6+ {[%emt 0:00:09]} 50. Kf3 {[%emt 0:00:35]} Rf6+ {[%emt 0:00:27]} 51. Ke3 {[%emt 0:00:05]} Re6+ {[%emt 0:00:05]} 52. Kf3 {[%emt 0:00:19]} Rf6+ {[%emt 0:00:05]} 53. Ke3 {[%emt 0:00:43]} 1/2-1/2

[Event "Frauenbundesliga 2024-25"]
[Site "Germany"]
[Date "2025.02.16"]
[Round "6.12"]
[White "Schuster, Rebekka"]
[Black "Spiel, Marianne"]
[Result "1-0"]
[Annotator "NA"]
[ECO "C00"]
[WhiteElo "1825"]
[BlackElo "1887"]
[PlyCount "71"]
[EventDate "2024.11.06"]
[EventType "team-tourn"]
[EventCountry "GER"]
[SourceTitle "playchess.com"]
[Source "ChessBase"]
[SourceQuality "1"]
[TimeControl "40/5400+30:1800+30"]

1. e4 {[%emt 0:00:01]} e6 {[%emt 0:00:18]} 2. d3 {[%emt 0:00:07]} d5 {[%emt 0:00:10]} 3. Qe2 {[%emt 0:00:13]} Nf6 {[%emt 0:19:43]} 4. Nf3 {[%emt 0:00:41]} Be7 {[%emt 0:05:13]} 5. g3 {[%emt 0:00:37]} c5 {[%emt 0:01:16]} 6. Bg2 {[%emt 0:00:15]} Nc6 {[%emt 0:00:55]} 7. O-O {[%emt 0:05:15]} O-O {[%emt 0:02:51]} 8. e5 {[%emt 0:00:42]} Nd7 {[%emt 0:00:38]} 9. c4 {[%emt 0:00:48]} d4 {[%emt 0:14:49]} 10. Re1 {[%emt 0:04:10]} Qe8 {[%emt 0:20:25]} 11. Nbd2 {[%emt 0:02:42]} f6 {[%emt 0:01:50]} 12. exf6 {[%emt 0:01:50]} Nxf6 {[%emt 0:03:23]} 13. Ng5 {[%emt 0:35:01]} Nd8 {[%emt 0:00:35]} 14. Ndf3 {[%emt 0:04:49]} h6 {[%emt 0:08:49]} 15. Ne4 {[%emt 0:00:36]} Nc6 {[%emt 0:00:16]} 16. Bf4 {[%emt 0:05:17]} g5 {[%emt 0:12:16]} 17. Nd6 {[%emt 0:13:43]} Qd7 {[%emt 0:00:18]} 18. Nxc8 {[%emt 0:00:07]} Raxc8 {[%emt 0:00:14]} 19. Bd2 {[%emt 0:02:22]} Kf7 {[%emt 0:02:09]} 20. h4 {[%emt 0:08:14]} g4 {[%emt 0:02:19]} 21. Ne5+ {[%emt 0:03:40]} Nxe5 {[%emt 0:00:02]} 22. Qxe5 {[%emt 0:00:03]} Bd6 {[%emt 0:00:37]} 23. Qe2 {[%emt 0:00:13]} h5 {[%emt 0:00:17]} 24. Bg5 {[%emt 0:00:57]} Rce8 {[%emt 0:00:16]} 25. f4 {[%emt 0:03:12]} b6 {[%emt 0:01:39]} 26. Qd2 {[%emt 0:01:26]} e5 {[%emt 0:00:21]} 27. Bxf6 {[%emt 0:00:27]} Kxf6 {[%emt 0:00:11]} 28. fxe5+ {[%emt 0:00:06]} Rxe5 {[%emt 0:00:32]} 29. Rxe5 {[%emt 0:01:51]} Bxe5 {[%emt 0:00:05]} 30. Qg5+ {[%emt 0:00:13]} Ke6 {[%emt 0:00:23]} 31. Re1 {[%emt 0:01:50]} Rf5 {[%emt 0:00:04]} 32. Bd5+ {[%emt 0:02:07]} Kd6 {[%emt 0:00:10]} 33. Qg6+ {[%emt 0:00:36]} Kc7 {[%emt 0:00:52]} 34. Be6 {[%emt 0:00:54]} Qd8 {[%emt 0:00:29]} 35. Bxf5 {[%emt 0:00:25]} Bxg3 {[%emt 0:00:01]} 36. Qf7+ {[%emt 0:00:21]} 1-0